Workbook

Sheet 10月销售数据
A1: 新都区新泰西路店 店销售跟踪报表 | J1: 新都区新泰西路店 店中药销售跟踪报表
C2: 当天销售情况 | F2: 累积销售情况 | L2: 当天销售情况 | O2: 累积销售情况
A3: 日期 | B3: 天数 | C3: 销售目标 | D3: 当天实际销售 | E3: 当天差距金额 | F3: 累积总销售 | G3: 累积日均销售 | H3: 日均差距金额 | I3: 总差距金额 | J3: 日期 | K3: 天数 | L3: 销售目标 | M3: 当天实际销售 | N3: 当天差距金额 | O3: 累积总销售 | P3: 累积日均销售 | Q3: 日均差距金额 | R3: 总差距金额
A4: 2013.09.26 | B4: 1 | C4: 1266 | D4: 787.7 | E4: =D4-C4 -> -478.3 | F4: 787.7 | G4: 787.7 | H4: -478.3 | I4: -478.3 | J4: 2013.09.26 | K4: 1 | L4: 100 | M4: 27 | N4: =M4-L4 -> -73 | O4: 27 | P4: 27 | Q4: -73 | R4: -73
A5: 2013.09.27 | B5: 2 | C5: 1266 | D5: 965.87 | E5: -300.13 | F5: =F4+D5 -> 1753.57 | G5: =F5/2 -> 876.785 | H5: =G5-C5 -> -389.215 | I5: =H5*2 -> -778.43 | J5: 2013.09.27 | K5: 2 | L5: 100 | M5: 0 | N5: -100 | O5: 27 | P5: =O5/2 -> 13.5 | Q5: =P5-L5 -> -86.5 | R5: =Q5*2 -> -173
A6: 2013.09.28 | B6: 3 | C6: 1266 | D6: 1667.6 | E6: 401.6 | F6: 3421.17 | G6: =F6/3 -> 1140.39 | H6: -125.61 | I6: =H6*3 -> -376.83 | J6: 2013.09.28 | K6: 3 | L6: 100 | M6: 25.6 | N6: -74.4 | O6: =O5+M6 -> 52.6 | P6: =O6/3 -> 17.53333333 | Q6: =P6-L6 -> -82.46666667 | R6: =Q6*3 -> -247.4
A7: 2013.09.29 | B7: 4 | C7: 1266 | D7: 1529.5 | E7: 263.5 | F7: 4950.67 | G7: =F7/4 -> 1237.6675 | H7: -28.3325 | I7: =H7*B7 -> -113.33 | J7: 2013.09.29 | K7: 4 | L7: 100 | M7: 25 | N7: -75 | O7: =O6+M7 -> 77.6 | P7: =O7/4 -> 19.4 | Q7: =P7-L7 -> -80.6 | R7: =Q7*4 -> -322.4
A8: 2013.09.30 | B8: 5 | C8: 1266 | D8: 2517.8 | E8: 1251.8 | F8: 7468.47 | G8: =F8/5 -> 1493.694 | H8: 227.694 | I8: =H8*K8 -> 1138.47 | J8: 2013.09.30 | K8: 5 | L8: 100 | M8: 39.3 | N8: -60.7 | O8: =O7+M8 -> 116.9 | P8: =O8/K8 -> 23.38 | Q8: =P8-L8 -> -76.62 | R8: =Q8*K8 -> -383.1
A9: 2013.10.01 | B9: 6 | C9: 1266 | D9: 1369.2 | E9: 103.2 | F9: 8837.67 | G9: =F9/K9 -> 1472.945 | H9: 206.945 | I9: 1241.67 | J9: 2013.10.01 | K9: 6 | L9: 100 | M9: 123.6 | N9: 23.6 | O9: =O8+M9 -> 240.5 | P9: =O9/K9 -> 40.08333333 | Q9: =P9-L9 -> -59.91666667 | R9: =Q9*K9 -> -359.5
A10: 2013.10.02 | B10: 7 | C10: 1266 | D10: 1521.32 | E10: 255.32 | F10: 10358.99 | G10: =F10/K10 -> 1479.855714 | H10: 213.8557143 | I10: 1496.99 | J10: 2013.10.02 | K10: 7 | L10: 100 | M10: 0 | N10: -100 | O10: 240.5 | P10: =O10/K10 -> 34.35714286 | Q10: =P10-100 -> -65.64285714 | R10: =Q10*K10 -> -459.5
A11: 2013.10.03 | B11: 8 | C11: 1266 | D11: 629.8 | E11: -636.2 | F11: =F10+D11 -> 10988.79 | G11: =F11/K11 -> 1373.59875 | H11: =G11-C11 -> 107.59875 | I11: 860.79 | J11: 2013.10.03 | K11: 8 | L11: 100 | M11: 0 | N11: -100 | O11: 240.5 | P11: =O11/K11 -> 30.0625 | Q11: =P11-100 -> -69.9375 | R11: =Q11*8 -> -559.5
A12: 2013.10.04 | B12: 9 | C12: 1266 | D12: 1100.52 | E12: -165.48 | F12: =F11+D12 -> 12089.31 | G12: =F12/'10月销售数据'!B12 -> 1343.256667 | H12: =G12-C12 -> 77.25666667 | I12: 695.31 | J12: 2013.10.04 | K12: 9 | L12: 100 | M12: 52.7 | N12: -47.3 | O12: =O11+M12 -> 293.2 | P12: =O12/9 -> 32.57777778 | Q12: =P12-L12 -> -67.42222222 | R12: =Q12*9 -> -606.8
A13: 2013.10.05 | B13: 10 | C13: 1266 | D13: 2057.62 | E13: 791.62 | F13: =F12+D13 -> 14146.93 | G13: =F13/B13 -> 1414.693 | H13: =G13-C13 -> 148.693 | I13: 1486.93 | J13: 2013.10.05 | K13: 10 | L13: 100 | M13: 0 | N13: -100 | O13: =O12+M13 -> 293.2 | P13: =O13/K13 -> 29.32 | Q13: =P13-L13 -> -70.68 | R13: =Q13*10 -> -706.8
A14: 2013.10.06 | B14: 11 | C14: 1266 | D14: 905.48 | E14: -360.52 | F14: 15052.41 | G14: 1368.4009 | H14: 102.401 | I14: 1126.411 | J14: 2013.10.06 | K14: 11 | L14: 100 | M14: 44.17 | N14: -55.83 | O14: 337.37 | P14: 30.67 | Q14: -69.33 | R14: -762.63
A15: 2013.10.07 | B15: 12 | C15: 1266 | D15: 790.3 | E15: -475.7 | F15: 15842.71 | G15: 1320.2258 | H15: 54.226 | I15: 650.712 | J15: 2013.10.07 | K15: 12 | L15: 100 | M15: 118 | N15: 18 | O15: 455.37 | P15: 37.9475 | Q15: -62.0525 | R15: -744.63
A16: 2013.10.08 | B16: 13 | C16: 1266 | D16: 1399.3 | E16: =D16-C16 -> 133.3 | F16: =F15+D16 -> 17242.01 | G16: =F16/B16 -> 1326.308462 | H16: =G16-C16 -> 60.30846154 | I16: =H16*13 -> 784.01 | J16: 2013.10.08 | K16: 13 | L16: 100 | M16: 35 | N16: =M16-L16 -> -65 | O16: =O15+M16 -> 490.37 | P16: =O16/K16 -> 37.72076923 | Q16: =P16-L16 -> -62.27923077 | R16: =Q16*K16 -> -809.63
A17: 2013.10.09 | B17: 14 | C17: 1266 | D17: 1274.73 | E17: =D17-C17 -> 8.73 | F17: =F16+D17 -> 18516.74 | G17: =F17/B17 -> 1322.624286 | H17: =G17-C17 -> 56.62428571 | I17: =H17*B17 -> 792.74 | J17: 2013.10.09 | K17: 14 | L17: 100 | M17: 28.3 | N17: =M17-L17 -> -71.7 | O17: =O16+M17 -> 518.67 | P17: =O17/K17 -> 37.04785714 | Q17: =P17-L17 -> -62.95214286 | R17: =Q17*K17 -> -881.33
A18: 2013.10.10 | B18: 15 | C18: 1266 | J18: 2013.10.10 | K18: 15 | L18: 100
A19: 2013.10.11 | B19: 16 | C19: 1266 | J19: 2013.10.11 | K19: 16 | L19: 100
A20: 2013.10.12 | B20: 17 | C20: 1266 | J20: 2013.10.12 | K20: 17 | L20: 100
A21: 2013.10.13 | B21: 18 | C21: 1266 | J21: 2013.10.13 | K21: 18 | L21: 100
A22: 2013.10.14 | B22: 19 | C22: 1266 | J22: 2013.10.14 | K22: 19 | L22: 100
A23: 2013.10.15 | B23: 20 | C23: 1266 | J23: 2013.10.15 | K23: 20 | L23: 100
A24: 2013.10.16 | B24: 21 | C24: 1266 | J24: 2013.10.16 | K24: 21 | L24: 100
A25: 2013.10.17 | B25: 22 | C25: 1266 | J25: 2013.10.17 | K25: 22 | L25: 100
A26: 2013.10.18 | B26: 23 | C26: 1266 | J26: 2013.10.18 | K26: 23 | L26: 100
A27: 2013.10.19 | B27: 24 | C27: 1266 | J27: 2013.10.19 | K27: 24 | L27: 100
A28: 2013.10.20 | B28: 25 | C28: 1266 | J28: 2013.10.20 | K28: 25 | L28: 100
A29: 2013.10.21 | B29: 26 | C29: 1266 | J29: 2013.10.21 | K29: 26 | L29: 100
A30: 2013.10.22 | B30: 27 | C30: 1266 | J30: 2013.10.22 | K30: 27 | L30: 100
A31: 2013.10.23 | B31: 28 | C31: 1266 | J31: 2013.10.23 | K31: 28 | L31: 100
A32: 2013.10.24 | B32: 29 | C32: 1266 | J32: 2013.10.24 | K32: 29 | L32: 100
A33: 2013.10.25 | B33: 30 | C33: 1266 | J33: 2013.10.25 | K33: 30 | L33: 100
A34: 2013.10.26 | B34: 31 | C34: 1266 | J34: 2013.10.26 | K34: 31 | L34: 100

Sheet 9月销售数据
A1: 新都区新泰西路店 店销售跟踪报表
C2: 当天销售情况 | F2: 累积销售情况
A3: 日期 | B3: 天数 | C3: 销售目标 | D3: 当天实际销售 | E3: 当天差距金额 | F3: 累积总销售 | G3: 累积日均销售 | H3: 日均差距金额 | I3: 总差距金额
A4: 2013-08-26 | B4: 1 | C4: 1226 | D4: 700.7 | E4: =D4-C4 -> -525.3 | F4: 700.7 | G4: 700.7 | H4: -525.3 | I4: -525.3
A5: 2013-08-27 | B5: 2 | C5: 1226 | D5: 871.4 | E5: -354.6 | F5: =F4+D5 -> 1572.1 | G5: =F5/2 -> 786.05 | H5: =G5-C5 -> -439.95 | I5: =H5*2 -> -879.9
A6: 2013-08-28 | B6: 3 | C6: 1226 | D6: 708.23 | E6: -517.77 | F6: 2280.33 | G6: =F6/3 -> 760.11 | H6: -465.89 | I6: =H6*3 -> -1397.67
A7: 2013-08-29 | B7: 4 | C7: 1226 | D7: 1369.9 | E7: 143.9 | F7: 3650.23 | G7: =F7/4 -> 912.5575 | H7: -313.4425 | I7: =H7*4 -> -1253.77
A8: 2013-08-30 | B8: 5 | C8: 1226 | D8: 1104.8 | E8: -121.2 | F8: 4755.03 | G8: =F8/5 -> 951.006 | H8: -274.994 | I8: =H8*5 -> -1374.97
A9: 2013-08-31 | B9: 6 | C9: 1226 | D9: 1684 | E9: 458 | F9: 6439.03 | G9: =F9/6 -> 1073.171667 | H9: -152.8283333 | I9: =H9*6 -> -916.97
A10: 2013-09-01 | B10: 7 | C10: 1226 | D10: 1338.61 | E10: 112.61 | F10: 7777.64 | G10: =F10/7 -> 1111.091429 | H10: -114.9085714 | I10: =H10*7 -> -804.36
A11: 2013-09-02 | B11: 8 | C11: 1226 | D11: 915.4 | E11: -310.6 | F11: 8693.04 | G11: =F11/8 -> 1086.63 | H11: -139.37 | I11: =H11*8 -> -1114.96
A12: 2013-09-03 | B12: 9 | C12: 1226 | D12: 1084.8 | E12: -141.2 | F12: 9777.84 | G12: =F12/9 -> 1086.426667 | H12: -139.5733333 | I12: =H12*9 -> -1256.16
A13: 2013-09-04 | B13: 10 | C13: 1226 | D13: 992.33 | E13: -233.67 | F13: 10770.17 | G13: =F13/10 -> 1077.017 | H13: -148.983 | I13: =H13*10 -> -1489.83
A14: 2013-09-05 | B14: 11 | C14: 1226 | D14: 1473.6 | E14: 247.6 | F14: 12243.77 | G14: =F14/11 -> 1113.07 | H14: -112.93 | I14: =H14*11 -> -1242.23
A15: 2013-09-06 | B15: 12 | C15: 1226 | D15: 1538.9 | E15: 312.9 | F15: 13782.67 | G15: =F15/12 -> 1148.555833 | H15: -77.44416667 | I15: =H15*12 -> -929.33
A16: 2013-09-07 | B16: 13 | C16: 1226 | D16: 1171.7 | E16: -54.3 | F16: 14954.37 | G16: =F16/13 -> 1150.336154 | H16: -75.66384615 | I16: =H16*13 -> -983.63
A17: 2013-09-08 | B17: 14 | C17: 1226 | D17: 1304.49 | E17: 78.49 | F17: 16258.86 | G17: =F17/14 -> 1161.347143 | H17: -64.65285714 | I17: =H17*14 -> -905.14
A18: 2013-09-09 | B18: 15 | C18: 1226 | D18: 617.1 | E18: -608.9 | F18: 16875.96 | G18: =F18/15 -> 1125.064 | H18: -100.936 | I18: =H18*15 -> -1514.04
A19: 2013-09-10 | B19: 16 | C19: 1226 | D19: 904 | E19: -322 | F19: 17779.96 | G19: =F19/16 -> 1111.2475 | H19: -114.7525 | I19: =H19*16 -> -1836.04
A20: 2013-09-11 | B20: 17 | C20: 1226 | D20: 813.42 | E20: =D20-C21 -> -412.58 | F20: 18593.38 | G20: =F20/17 -> 1093.728235 | H20: -132.2717647 | I20: =H20*17 -> -2248.62
A21: 2013-09-12 | B21: 18 | C21: 1226 | D21: 1576.1 | E21: =D21-C21 -> 350.1 | F21: 20169.48 | G21: =F21/18 -> 1120.526667 | H21: -105.4733333 | I21: =H21*18 -> -1898.52
A22: 2013-09-13 | B22: 19 | C22: 1226 | D22: 2316.9 | E22: 1090.9 | F22: 22486.38 | G22: =F22/19 -> 1183.493684 | H22: -42.50631579 | I22: =H22*19 -> -807.62
A23: 2013-09-14 | B23: 20 | C23: 1226 | D23: 959.6 | E23: -266.4 | F23: 23445.98 | G23: =F23/20 -> 1172.299 | H23: -53.701 | I23: =H23*20 -> -1074.02
A24: 2013-09-15 | B24: 21 | C24: 1226 | D24: 516.6 | E24: -709.4 | F24: 23962.58 | G24: =F24/21 -> 1141.075238 | H24: -84.9247619 | I24: =H24*21 -> -1783.42
A25: 2013-09-16 | B25: 22 | C25: 1226 | D25: 2738.25 | E25: 1512.25 | F25: 26700.83 | G25: =F25/22 -> 1213.674091 | H25: -12.32590909 | I25: =H25*22 -> -271.17
A26: 2013-09-17 | B26: 23 | C26: 1226 | D26: 2934 | E26: 1708 | F26: 29634.83 | G26: =F26/23 -> 1288.47087 | H26: 62.47086957 | I26: =H26*23 -> 1436.83
A27: 2013-09-18 | B27: 24 | C27: 1226 | D27: 1693.92 | E27: =D27-C27 -> 467.92 | F27: 31328.75 | G27: 1305.364 | H27: 79.364 | I27: 1904.736
A28: 2013-09-19 | B28: 25 | C28: 1226 | D28: 1080.8 | E28: -145.2 | F28: =F27+D28 -> 32409.55 | G28: =F28/B28 -> 1296.382 | H28: =G28-C28 -> 70.382 | I28: =H28*B28 -> 1759.55
A29: 2013-09-20 | B29: 26 | C29: 1226 | D29: 927.1 | E29: -298.9 | F29: =F28+D29 -> 33336.65 | G29: =F29/B29 -> 1282.178846 | H29: =G29-C29 -> 56.17884615 | I29: =H29*B29 -> 1460.65
A30: 2013-09-21 | B30: 27 | C30: 1226 | D30: 2190.05 | E30: 964.05 | F30: =F29+D30 -> 35526.7 | G30: =F30/B30 -> 1315.803704 | H30: 89.804 | I30: 2424.708
A31: 2013-09-22 | B31: 28 | C31: 1226 | D31: 1175.54 | E31: -50.46 | F31: 36702.24 | G31: 1310.794 | H31: 46.814 | I31: 1310.792
A32: 2013-09-23 | B32: 29 | C32: 1226 | D32: 949.7 | E32: -276.3 | F32: =F31+D32 -> 37651.94 | G32: =F32/29 -> 1298.342759 | H32: =G32-C32 -> 72.34275862 | I32: =H32*B32 -> 2097.94
A33: 2013-09-24 | B33: 30 | C33: 1226 | D33: 2914.6 | E33: 1688.6 | F33: =F32+D33 -> 40566.54 | G33: =F33/B33 -> 1352.218 | H33: =G33-C33 -> 126.218 | I33: =H33*B33 -> 3786.54
A34: 2013-09-25 | B34: 31 | C34: 1226 | D34: 1671.23 | E34: 445.23 | F34: 42237.77 | G34: 1362.508 | H34: 136.508 | I34: 4231.748
B35: 32 | C35: 1226

Sheet 8月销售数据
A1: 新都区新泰西路店 店销售跟踪报表
A2: 日期 | B2: 天数 | C2: 当天销售情况 | F2: 累积销售情况
C3: 销售目标 | D3: 当天实际销售 | E3: 当天差距金额 | F3: 累积总销售 | G3: 累积日均销售 | H3: 日均差距金额 | I3: 总差距金额
A4: 2013-07-26 | B4: 1 | C4: 1100 | D4: 617.1 | E4: -482.9 | F4: 617.1 | G4: 617.1 | H4: -482.9 | I4: -482.9
A5: 2013-07-27 | B5: =B4+1 -> 2 | C5: 1100 | D5: 520.87 | E5: -579.13 | F5: 1137.97 | G5: 568.985 | H5: -531.015 | I5: -1062.03
A6: 2013-07-28 | B6: =B5+1 -> 3 | C6: 1100 | D6: 744.64 | E6: =D6-C6 -> -355.36 | F6: =F5+D6 -> 1882.61 | G6: =F6/3 -> 627.5366667 | H6: =G6-C6 -> -472.4633333 | I6: =H6*3 -> -1417.39
A7: 2013-07-29 | B7: 4 | C7: 1100 | D7: 743.84 | E7: -356.16 | F7: 2626.45 | G7: 656.6125 | H7: -443.3875 | I7: -1773.55
A8: 2013-07-30 | B8: 5 | C8: 1100 | D8: 614.1 | E8: =D8-C8 -> -485.9 | F8: =F7+D8 -> 3240.55 | G8: =F8/B8 -> 648.11 | H8: =G8-C8 -> -451.89 | I8: =H8*B8 -> -2259.45
A9: 2013-07-31 | B9: 6 | C9: 1100 | D9: 544.87 | E9: -555.13 | F9: 3785.42 | G9: =F9/B9 -> 630.9033333 | H9: -469.0966667 | I9: -2814.58
A10: 2013-08-01 | B10: 7 | C10: 1100 | D10: 1309.6 | E10: 209.6 | F10: 5095.02 | G10: =F10/7 -> 727.86 | H10: -372.14 | I10: -2604.98
A11: 2013-08-02 | B11: 8 | C11: 1100 | D11: 864.6 | E11: -235.4 | F11: 5959.62 | G11: =F11/B11 -> 744.9525 | H11: -355.0475 | I11: -2840.38
A12: 2013-08-03 | B12: 9 | C12: 1100 | D12: 1019.22 | E12: -80.78 | F12: 6978.84 | G12: 775.4266667 | H12: -324.5733333 | I12: -2921.16
A13: 2013-08-04 | B13: 10 | C13: 1100 | D13: 1159.23 | E13: 59.23 | F13: 8138.07 | G13: 813.807 | H13: -286.193 | I13: -2861.93
A14: 2013-08-05 | B14: 11 | C14: 1100 | D14: 761.8 | E14: -338.2 | F14: =D14+F13 -> 8899.87 | G14: 809.0790909 | H14: -290.9209091 | I14: -3200.13
A15: 2013-08-06 | B15: 12 | C15: 1100 | D15: 578.9 | E15: -521.1 | F15: =D15+F14 -> 9478.77 | G15: 789.8975 | H15: -310.1025 | I15: -3721.23
A16: 2013-08-07 | B16: 13 | C16: 1100 | D16: 1518.49 | E16: 418.49 | F16: =F15+D16 -> 10997.26 | G16: 845.9430769 | H16: -254.0569231 | I16: -3302.74
A17: 2013-08-08 | B17: 14 | C17: 1100 | D17: 1097.6 | E17: -2.4 | F17: =F16+D17 -> 12094.86 | G17: =F17/B17 -> 863.9185714 | H17: -236.0814286 | I17: -3305.14
A18: 2013-08-09 | B18: 15 | C18: 1100 | D18: 860.26 | E18: -239.74 | F18: =F17+D18 -> 12955.12 | G18: =F18/B18 -> 863.6746667 | H18: -236.3253333 | I18: -3544.88
A19: 2013-08-10 | B19: 16 | C19: 1100 | D19: 710 | E19: -390 | F19: =F18+D19 -> 13665.12 | G19: =F19/B19 -> 854.07 | H19: -245.93 | I19: -3934.88
A20: 2013-08-11 | B20: 17 | C20: 1100 | D20: 1173.64 | E20: 73.64 | F20: 14838.76 | G20: 872.888 | H20: -227.112 | I20: -3860.904
A21: 2013-08-12 | B21: 18 | C21: 1100 | D21: 556.5 | E21: =D21-C21 -> -543.5 | F21: =F20+D21 -> 15395.26 | G21: =F21/B21 -> 855.2922222 | H21: =G21-C21 -> -244.7077778 | I21: =H21*B21 -> -4404.74
A22: 2013-08-13 | B22: 19 | C22: 1100 | D22: 2210.3 | E22: 1110.3 | F22: 17605.56 | G22: 926.6084211 | H22: -173.3915789 | I22: -3294.44
A23: 2013-08-14 | B23: 20 | C23: 1100 | D23: 1459.53 | E23: 359.53 | F23: 19065.09 | G23: 953.2545 | H23: -146.7455 | I23: -2934.91
A24: 2013-08-15 | B24: 21 | C24: 1100 | D24: 710.47 | E24: -389.53 | F24: 19775.56 | G24: 941.6933333 | H24: -158.3066667 | I24: -3324.44
A25: 2013-08-16 | B25: =B24+1 -> 22 | C25: 1100 | D25: 1583.5 | E25: 483.5 | F25: 21359.06 | G25: 970.8663636 | H25: -129.1336364 | I25: -2840.94
A26: 2013-08-17 | B26: 23 | C26: 1100 | D26: 840.28 | E26: -259.72 | F26: 22199.34 | G26: 965.1886957 | H26: -134.8113043 | I26: -3100.66
A27: 2013-08-18 | B27: 24 | C27: 1100 | D27: 960.48 | E27: -139.52 | F27: =F26+D27 -> 23159.82 | G27: 964.9925 | H27: -135.0075 | I27: -3240.18
A28: 2013-08-19 | B28: 25 | C28: 1100 | D28: 926.7 | E28: -173.3 | F28: =F27+D28 -> 24086.52 | G28: 963.4608 | H28: -136.5392 | I28: -3413.48
A29: 2013-08-20 | B29: 26 | C29: 1100 | D29: 1222.8 | E29: 122.8 | F29: 25309.32 | G29: 973.435 | H29: -126.565 | I29: -3290.69
A30: 2013-08-21 | B30: 27 | C30: 1100 | D30: 819.43 | E30: -280.57 | F30: =F29+D30 -> 26128.75 | G30: =F30/27 -> 967.7314815 | H30: =G30-C30 -> -132.2685185 | I30: =H30*B30 -> -3571.25
A31: 2013-08-22 | B31: 28 | C31: 1100 | D31: 686.7 | E31: -413.3 | F31: =F30+D31 -> 26815.45 | G31: =F31/B31 -> 957.6946429 | H31: =G31-C31 -> -142.3053571 | I31: =H31*B31 -> -3984.55
A32: 2013-08-23 | B32: 29 | C32: 1100 | D32: 1141.3 | E32: 41.3 | F32: 27956.75 | G32: 964.0258 | H32: -135.9742 | I32: -3943.2518
A33: 2013-08-24 | B33: 30 | C33: 1100 | D33: 1185.71 | E33: 85.71 | F33: =F32+D33 -> 29142.46 | G33: =F33/B33 -> 971.4153333 | H33: =G33-C33 -> -128.5846667 | I33: =H33*B33 -> -3857.54
A34: 2013-08-25 | B34: 31 | C34: 1100 | D34: 1259.99 | E34: 159.99 | F34: =F33+D34 -> 30402.45 | G34: =F34/B34 -> 980.7241935 | H34: =G34-C34 -> -119.2758065 | I34: =H34*B34 -> -3697.55
A36: 汇总 | C36: / | D36: / | E36: /
A38: 当天差距金额 | C38: ＝当天实际销售-当天销售目标
A39: 累积总销售 | C39: ＝1月14日至当天的总销售
A40: 累积日均销售 | C40: ＝累积总销售/天数
A41: 日均差距金额 | C41: ＝累积日均销售-当天销售目标
A42: 总差距金额 | C42: ＝日均差距金额*天数
A45: 1、每天晚上下班后安排人员填写门店日销及员工日销报表
A46: 2、每天在早会时向每一个员工通报前天的门店及员工销售日报，并传达当天每个员工的销售任务。下午接班的班组在上岗前开会小会学习后再上岗。
A47: 3、两个报表需每天上午9：00以前报片区，片区于9：30以前报营业部。周末因要做广场活动可不报
A48: 4、两个报表需挂在员工休息区或是办公室等能让员工都看到的地方，但注意不要挂在顾客轻易能看到的地方。
A49: 5、每一个员工必须清楚了解自已当班的销售任务及自已当天与累积的差距金额，营业部每天均会安排人员进行电话抽查，对于不清楚的员工，处罚30元/次。若是店长原因，则只处罚店长。

Sheet 7月销售数据
A1: 新都区新泰西路店 店销售跟踪报表
A2: 日期 | B2: 天数 | C2: 当天销售情况 | F2: 累积销售情况
C3: 销售目标 | D3: 当天实际销售 | E3: 当天差距金额 | F3: 累积总销售 | G3: 累积日均销售 | H3: 日均差距金额 | I3: 总差距金额
A4: 2013-06-26 | B4: 1 | C4: 1100 | D4: 888.3 | E4: -211.7 | F4: 888.3 | G4: 888.3 | H4: -211.7 | I4: -211.7
A5: 2013-06-27 | B5: =B4+1 -> 2 | C5: 1100 | D5: 751.42 | E5: =D5-C5 -> -348.58 | F5: =D5+D4 -> 1639.72 | G5: =F5/2 -> 819.86 | H5: =G5-C5 -> -280.14 | I5: =H5*2 -> -560.28
A6: 2013-06-28 | B6: =B5+1 -> 3 | C6: 1100 | D6: 480.22 | E6: -619.78 | F6: =F5+D6 -> 2119.94 | G6: =F6/3 -> 706.6466667 | H6: -393.3533333 | I6: =H6*3 -> -1180.06
A7: 2013-06-29 | B7: 4 | C7: 1100 | D7: 726.09 | E7: -373.91 | F7: =F6+D7 -> 2846.03 | G7: =F7/4 -> 711.5075 | H7: -388.4925 | I7: =H7*4 -> -1553.97
A8: 2013-06-30 | B8: 5 | C8: 1100 | D8: 616.05 | E8: -483.95 | F8: =F7+D8 -> 3462.08 | G8: =F8/5 -> 692.416 | H8: -407.584 | I8: =H8*5 -> -2037.92
A9: 2013-07-01 | B9: 6 | C9: 1100 | D9: 1177.5 | E9: 77.5 | F9: =F8+D9 -> 4639.58 | G9: =F9/6 -> 773.2633333 | H9: -326.7366667 | I9: =H9*6 -> -1960.42
A10: 2013-07-02 | B10: 7 | C10: 1100 | D10: 939 | E10: -161 | F10: =D10+F9 -> 5578.58 | G10: =F10/7 -> 796.94 | H10: -303.06 | I10: =H10*7 -> -2121.42
A11: 2013-07-03 | B11: 8 | C11: 1100 | D11: 1880.18 | E11: 780.18 | F11: =F10+D11 -> 7458.76 | G11: =F11/8 -> 932.345 | H11: =G11-C11 -> -167.655 | I11: =H11*8 -> -1341.24
A12: 2013-07-04 | B12: 9 | C12: 1100 | D12: 3986.28 | E12: 2886.28 | F12: =D12+F11 -> 11445.04 | G12: =F12/9 -> 1271.671111 | H12: =G12-C12 -> 171.6711111 | I12: =H12*9 -> 1545.04
A13: 2013-07-05 | B13: 10 | C13: 1100 | D13: 633.1 | E13: -466.9 | F13: =F12+D13 -> 12078.14 | G13: =F13/10 -> 1207.814 | H13: =G13-C13 -> 107.814 | I13: =H13*10 -> 1078.14
A14: 2013-07-06 | B14: 11 | C14: 1100 | D14: 1495 | E14: 395 | F14: =F13+D14 -> 13573.14 | G14: 1291.1945 | H14: 191.1945 | I14: 2103.139
A15: 2013-07-07 | B15: 12 | C15: 1100 | D15: 1426.43 | E15: 326.43 | F15: =D15+F14 -> 14999.57 | G15: =F15/12 -> 1249.964167 | H15: =G15-C15 -> 149.9641667 | I15: =H15*12 -> 1799.57
A16: 2013-07-08 | B16: 13 | C16: 1100 | D16: 528.25 | E16: -571.75 | F16: 15527.82 | G16: 1194.44789 | H16: 94.44769 | I16: 1227.81999
A17: 2013-07-09 | B17: 14 | C17: 1100 | D17: 620.5 | E17: =D17-C17 -> -479.5 | F17: 16148.32 | G17: 1153.45142 | H17: 53.45142 | I17: 748.31988
A18: 2013-07-10 | B18: 15 | C18: 1100 | D18: 862.85 | E18: -237.15 | F18: =F17+D18 -> 17011.17 | G18: =F18/15 -> 1134.078 | H18: =G18-C18 -> 34.078 | I18: =H18*B18 -> 511.17
A19: 2013-07-11 | B19: 16 | C19: 1100 | D19: 787.4 | E19: -312.6 | F19: 17798.55 | G19: 1112.4093 | H19: 12.4093 | I19: 198.55
A20: 2013-07-12 | B20: 17 | C20: 1100 | D20: 932.9 | E20: -167.1 | F20: 18731.45 | G20: 1101.85 | H20: 1.85 | I20: 31.45
A21: 2013-07-13 | B21: 18 | C21: 1100 | D21: 1303.6 | E21: 203.6 | F21: 20035.05 | G21: 1113.0583 | H21: 13.0583 | I21: 235.0494
A22: 2013-07-14 | B22: 19 | C22: 1100 | D22: 1137.89 | E22: 37.89 | F22: 21172.94 | G22: 1114.3652 | H22: 14.3652 | I22: 272.939999
A23: 2013-07-15 | B23: 20 | C23: 1100 | D23: 1446 | E23: 346 | F23: =F22+D23 -> 22618.94 | G23: =F23/20 -> 1130.947 | H23: =G23-C23 -> 30.947 | I23: =H23*B23 -> 618.94
A24: 2013-07-16 | B24: 21 | C24: 1100 | D24: 1452 | E24: 352 | F24: =F23+D24 -> 24070.94 | G24: =F24/B24 -> 1146.235238 | H24: =G24-C24 -> 46.2352381 | I24: =H24*B24 -> 970.94
A25: 2013-07-17 | B25: =B24+1 -> 22 | C25: 1100 | D25: 1302.35 | E25: 202.35 | F25: 25373.29 | G25: 1153.33126 | H25: 53.33126 | I25: 1173.28772
A26: 2013-07-18 | B26: 23 | C26: 1100 | D26: 867.9 | E26: -232.1 | F26: 26241.19 | G26: 1140.5213 | H26: 40.5213 | I26: 931.9899
A27: 2013-07-19 | B27: 24 | C27: 1100 | D27: 889.45 | E27: =D27-C27 -> -210.55 | F27: =F26+D27 -> 27130.64 | G27: =F27/B27 -> 1130.443333 | H27: =G27-C27 -> 30.44333333 | I27: =H27*24 -> 730.64
A28: 2013-07-20 | B28: 25 | C28: 1100 | D28: 597.91 | E28: 502.09 | F28: 27728.55 | G28: 1109.142 | H28: 9.142 | I28: 228.55
A29: 2013-07-21 | B29: 26 | C29: 1100 | D29: 468.66 | E29: =D29-C29 -> -631.34 | F29: =F28+D29 -> 28197.21 | G29: =F29/26 -> 1084.508077 | H29: =G29-C29 -> -15.49192308 | I29: =H29*26 -> -402.79
A30: 2013-07-22 | B30: 27 | C30: 1100 | D30: 1165.64 | E30: =D30-C30 -> 65.64 | F30: =F29+D30 -> 29362.85 | G30: =F30/27 -> 1087.512963 | H30: =G30-C30 -> -12.48703704 | I30: =H30*B30 -> -337.15
A31: 2013-07-23 | B31: 28 | C31: 1100 | D31: 734.3 | E31: -365.7 | F31: 30097.15 | G31: 1074.8982 | H31: -25.1018 | I31: -702.8504
A32: 2013-07-24 | B32: 29 | C32: 1100 | D32: 1595.78 | E32: 495.78 | F32: 31692.93 | G32: 1092.8596 | H32: 7.1404 | I32: 207.0716
A33: 2013-07-25 | B33: 30 | C33: 1100 | D33: 866.9 | E33: =D33-C33 -> -233.1 | F33: =D33+F32 -> 32559.83 | G33: =F33/30 -> 1085.327667 | H33: =G33-C33 -> -14.67233333 | I33: =H33*B33 -> -440.17
A34: 2013-07-26 | B34: 31 | C34: 1100
A36: 汇总 | C36: / | D36: / | E36: /
A38: 当天差距金额 | C38: ＝当天实际销售-当天销售目标
A39: 累积总销售 | C39: ＝1月14日至当天的总销售
A40: 累积日均销售 | C40: ＝累积总销售/天数
A41: 日均差距金额 | C41: ＝累积日均销售-当天销售目标
A42: 总差距金额 | C42: ＝日均差距金额*天数
A45: 1、每天晚上下班后安排人员填写门店日销及员工日销报表
A46: 2、每天在早会时向每一个员工通报前天的门店及员工销售日报，并传达当天每个员工的销售任务。下午接班的班组在上岗前开会小会学习后再上岗。
A47: 3、两个报表需每天上午9：00以前报片区，片区于9：30以前报营业部。周末因要做广场活动可不报
A48: 4、两个报表需挂在员工休息区或是办公室等能让员工都看到的地方，但注意不要挂在顾客轻易能看到的地方。
A49: 5、每一个员工必须清楚了解自已当班的销售任务及自已当天与累积的差距金额，营业部每天均会安排人员进行电话抽查，对于不清楚的员工，处罚30元/次。若是店长原因，则只处罚店长。

Sheet 6月销售数据
A1: 新都区新泰西路店 店销售跟踪报表
A2: 日期 | B2: 天数 | C2: 当天销售情况 | F2: 累积销售情况
C3: 销售目标 | D3: 当天实际销售 | E3: 当天差距金额 | F3: 累积总销售 | G3: 累积日均销售 | H3: 日均差距金额 | I3: 总差距金额
A4: 2013-05-26 | B4: 1 | C4: 1100 | D4: 785.76 | E4: -314.24 | F4: 785.76 | G4: 785.76 | H4: -314.24 | I4: -314.24
A5: 2013-05-27 | B5: =B4+1 -> 2 | C5: 1100 | D5: 645.9 | E5: -454.1 | F5: 1431.66 | G5: 715.83 | H5: -384.17 | I5: -768.34
A6: 2013-05-28 | B6: =B5+1 -> 3 | C6: 1100 | D6: 603.4 | E6: -496.6 | F6: 2035.06 | G6: 678.353 | H6: -421.647 | I6: -1264.941
A7: 2013-05-29 | B7: 4 | C7: 1100 | D7: 1538.61 | E7: =D7-C7 -> 438.61 | F7: =F6+D7 -> 3573.67 | G7: =F7/4 -> 893.4175 | H7: =G7-C7 -> -206.5825 | I7: =H7*4 -> -826.33
A8: 2013-05-30 | B8: 5 | C8: 1100 | D8: 802.4 | E8: -297.6 | F8: 4376.07 | G8: 875.214 | H8: -224.786 | I8: -1123.93
A9: 2013-05-31 | B9: 6 | C9: 1100 | D9: 755 | E9: -345 | F9: 5131.07 | G9: 855.178 | H9: -244.822 | I9: -1468.932
A10: 2013-06-01 | B10: 7 | C10: 1100 | D10: 606.1 | E10: -493.9 | F10: 5737.17 | G10: 819.5957 | H10: -280.4043 | I10: -1962.8301
A11: 2013-06-02 | B11: 8 | C11: 1100 | D11: 822.21 | E11: -277.79 | F11: 6559.38 | G11: 819.9225 | H11: -280.0775 | I11: -2240.62
A12: 2013-06-03 | B12: 9 | C12: 1100 | D12: 1060.26 | E12: =D12-C12 -> -39.74 | F12: =D12+F11 -> 7619.64 | G12: =F12/9 -> 846.6266667 | H12: =G12-C12 -> -253.3733333 | I12: =H12*9 -> -2280.36
A13: 2013-06-04 | B13: 10 | C13: 1100 | D13: 789.88 | E13: =D13-C13 -> -310.12 | F13: =D13+F12 -> 8409.52 | G13: =F13/10 -> 840.952 | H13: =G13-C13 -> -259.048 | I13: =H13*10 -> -2590.48
A14: 2013-06-05 | B14: 11 | C14: 1100 | D14: 976.79 | E14: -123.21 | F14: 9386.31 | G14: 853.3 | H14: -246.7 | I14: -2713.7
A15: 2013-06-06 | B15: 12 | C15: 1100 | D15: 518.01 | E15: -581.99 | F15: 9904.32 | G15: 825.36 | H15: -274.64 | I15: -3295.68
A16: 2013-06-07 | B16: 13 | C16: 1100 | D16: 870.75 | E16: -229.25 | F16: 10775.07 | G16: 828.8515 | H16: -271.148 | I16: -3524.924
A17: 2013-06-08 | B17: 14 | C17: 1100 | D17: 574.1 | E17: -525.9 | F17: 11349.17 | G17: 810.655 | H17: -289.345 | I17: -4050.83
A18: 2013-06-09 | B18: 15 | C18: 1100 | D18: 1159.63 | E18: 59.63 | F18: 12508.8 | G18: 833.92 | H18: -266.08 | I18: -3991.2
A19: 2013-06-10 | B19: 16 | C19: 1100 | D19: 565.86 | E19: -534.14 | F19: 13074.66 | G19: 817.166 | H19: -282.834 | I19: -4525.344
A20: 2013-06-11 | B20: 17 | C20: 1100 | D20: 1184.73 | E20: 84.73 | F20: 14259.39 | G20: 838.7876 | H20: -261.2124 | I20: -4440.6108
A21: 2013-06-12 | B21: 18 | C21: 1100 | D21: 2150 | E21: =D21-C21 -> 1050 | F21: =F20+D21 -> 16409.39 | G21: =F21/18 -> 911.6327778 | H21: =G21-C21 -> -188.3672222 | I21: =H21*18 -> -3390.61
A22: 2013-06-13 | B22: 19 | C22: 1100 | D22: 631.6 | E22: =D22-C22 -> -468.4 | F22: =F21+D22 -> 17040.99 | G22: =F22/19 -> 896.8942105 | H22: =G22-C22 -> -203.1057895 | I22: =H22*19 -> -3859.01
A23: 2013-06-14 | B23: 20 | C23: 1100 | D23: 826.67 | E23: -273.33 | F23: 17867.66 | G23: 893.383 | H23: -206.617 | I23: -4132.34
A24: 2013-06-15 | B24: 21 | C24: 1100 | D24: 625.48 | E24: -474.52 | F24: 18493.14 | G24: 880.6257 | H24: -219.3743 | I24: -4606.8603
A25: 2013-06-16 | B25: 22 | C25: 1100 | D25: 759.41 | E25: -340.59 | F25: 19252.55 | G25: 875.1159 | H25: -224.8841 | I25: -4947.4502
A26: 2013-06-17 | B26: 23 | C26: 1100 | D26: 1148.2 | E26: 48.2 | F26: 20400.75 | G26: 886.98913 | H26: -213.0108 | I26: 4899.25
A27: 2013-06-18 | B27: 24 | C27: 1100 | D27: 586.4 | E27: =D27-C27 -> -513.6 | F27: =F26+D27 -> 20987.15 | G27: =F27/24 -> 874.4645833 | H27: =G27-C27 -> -225.5354167 | I27: =H27*24 -> -5412.85
A28: 2013-06-19 | B28: 25 | C28: 1100 | D28: 1100.66 | E28: =D28-C28 -> 0.66 | F28: =F27+D28 -> 22087.81 | G28: =F28/25 -> 883.5124 | H28: =G28-C28 -> -216.4876 | I28: =H28*25 -> -5412.19
A29: 2013-06-20 | B29: 26 | C29: 1100 | D29: 982.29 | E29: -117.71 | F29: 23070.1 | G29: 922.804 | H29: -177.196 | I29: -4607.096
A30: 2013-06-21 | B30: 27 | C30: 1100 | D30: 700.6 | E30: -399.4 | F30: 23770.7 | G30: 880.396 | H30: -219.604 | I30: -4611.684
A31: 2013-06-22 | B31: 28 | C31: 1100 | D31: 1607.31 | E31: =D31-C31 -> 507.31 | F31: =F30+D31 -> 25378.01 | G31: =F31/28 -> 906.3575 | H31: =G31-C31 -> -193.6425 | I31: =H31*28 -> -5421.99
A32: 2013-06-23 | B32: 29 | C32: 1100 | D32: 1920.99 | E32: =D32-C32 -> 820.99 | F32: =F31+D32 -> 27299 | G32: =F32/29 -> 941.3448276 | H32: =G32-C32 -> -158.6551724 | I32: =H32*29 -> -4601
A33: 2013-06-24 | B33: 30 | C33: 1100 | D33: 2006.71 | E33: =D33-C34 -> 906.71 | F33: =F32+D33 -> 29305.71 | G33: =F33/30 -> 976.857 | H33: =G33-C33 -> -123.143 | I33: =H33*30 -> -3694.29
A34: 2013-06-25 | B34: 31 | C34: 1100 | D34: 1161.2 | E34: 61.2 | F34: 30466.91 | G34: 982.8035 | H34: -117.1965 | I34: -3633.0915
A36: 汇总 | C36: / | D36: / | E36: /
A38: 当天差距金额 | C38: ＝当天实际销售-当天销售目标
A39: 累积总销售 | C39: ＝1月14日至当天的总销售
A40: 累积日均销售 | C40: ＝累积总销售/天数
A41: 日均差距金额 | C41: ＝累积日均销售-当天销售目标
A42: 总差距金额 | C42: ＝日均差距金额*天数
A45: 1、每天晚上下班后安排人员填写门店日销及员工日销报表
A46: 2、每天在早会时向每一个员工通报前天的门店及员工销售日报，并传达当天每个员工的销售任务。下午接班的班组在上岗前开会小会学习后再上岗。
A47: 3、两个报表需每天上午9：00以前报片区，片区于9：30以前报营业部。周末因要做广场活动可不报
A48: 4、两个报表需挂在员工休息区或是办公室等能让员工都看到的地方，但注意不要挂在顾客轻易能看到的地方。
A49: 5、每一个员工必须清楚了解自已当班的销售任务及自已当天与累积的差距金额，营业部每天均会安排人员进行电话抽查，对于不清楚的员工，处罚30元/次。若是店长原因，则只处罚店长。

Sheet 5月活动数据
A1: 新都区新泰西路店 店销售跟踪报表
A2: 日期 | B2: 天数 | C2: 当天销售情况 | F2: 累积销售情况
C3: 销售目标 | D3: 当天实际销售 | E3: 当天差距金额 | F3: 累积总销售 | G3: 累积日均销售 | H3: 日均差距金额 | I3: 总差距金额
A4: 2013-05-07 | B4: 1 | C4: 1200 | D4: 1122.17 | E4: =D4-C4 -> -77.83 | F4: 1122.17 | G4: 1122.17 | H4: -77.83 | I4: -77.83
A5: 2013-05-08 | B5: =B4+1 -> 2 | C5: 1200 | D5: 1141.62 | E5: -58.38 | F5: 2263.79 | G5: 1131.895 | H5: -68.105 | I5: -136.21
A6: 2013-05-09 | B6: =B5+1 -> 3 | C6: 1200 | D6: 1491.9 | E6: 291.9 | F6: 3755.69 | G6: 1251.89666 | H6: 51.89666 | I6: 155.6899
A7: 2013-05-10 | B7: 4 | C7: 1200 | D7: 1775.7 | E7: =D7-C7 -> 575.7 | F7: =F6+D7 -> 5531.39 | G7: =F7/4 -> 1382.8475 | H7: =G7-C7 -> 182.8475 | I7: =H7*4 -> 731.39
A8: 2013-05-11 | B8: 5 | C8: 1200 | D8: 1520.9 | E8: 320.9 | F8: 7052.29 | G8: 1410.458 | H8: 210.458 | I8: 1052.29
A9: 2013-05-12 | B9: 6 | C9: 1200 | D9: 883.17 | E9: 316.83 | F9: 7935.46 | G9: 1322.57666 | H9: 122.57666 | I9: 735.45999
A10: 2013-05-13 | B10: 7 | C10: 1200 | D10: 2417.2 | E10: =D10-C10 -> 1217.2 | F10: =F9+D10 -> 10352.66 | G10: =F10/7 -> 1478.951429 | H10: =G10-C10 -> 278.9514286 | I10: =H10*7 -> 1952.66
A11: 2013-05-14 | B11: 8 | D11: =SUM(D4:D10) -> 10352.66
A12: 2013-05-15 | B12: 9
A13: 2013-05-16 | B13: 10
A14: 2013-05-17 | B14: 11
A15: 2013-05-18 | B15: =B14+1 -> 12
A16: 2013-05-19 | B16: 13
A17: 2013-05-20 | B17: 14
A18: 2013-05-21 | B18: 15
A19: 2013-05-11 | B19: 16
A20: 2013-05-12 | B20: 17
A21: 2013-05-13 | B21: 18
A22: 2013-05-14 | B22: 19
A23: 2013-05-15 | B23: 20
A24: 2013-05-16 | B24: 21
A25: 2013-05-17 | B25: 22
A26: 2013-05-18 | B26: 23
A27: 2013-05-19 | B27: 24
A28: 2013-05-20 | B28: 25
A29: 2013-05-21 | B29: 26
A30: 2013-05-22 | B30: 27
A31: 2013-05-23 | B31: 28
A32: 2013-05-24 | B32: 29
A33: 2013-05-25 | B33: 30
A34: 2013-05-26 | B34: 31
A36: 汇总 | C36: / | D36: / | E36: /
A38: 当天差距金额 | C38: ＝当天实际销售-当天销售目标
A39: 累积总销售 | C39: ＝1月14日至当天的总销售
A40: 累积日均销售 | C40: ＝累积总销售/天数
A41: 日均差距金额 | C41: ＝累积日均销售-当天销售目标
A42: 总差距金额 | C42: ＝日均差距金额*天数
A45: 1、每天晚上下班后安排人员填写门店日销及员工日销报表
A46: 2、每天在早会时向每一个员工通报前天的门店及员工销售日报，并传达当天每个员工的销售任务。下午接班的班组在上岗前开会小会学习后再上岗。
A47: 3、两个报表需每天上午9：00以前报片区，片区于9：30以前报营业部。周末因要做广场活动可不报
A48: 4、两个报表需挂在员工休息区或是办公室等能让员工都看到的地方，但注意不要挂在顾客轻易能看到的地方。
A49: 5、每一个员工必须清楚了解自已当班的销售任务及自已当天与累积的差距金额，营业部每天均会安排人员进行电话抽查，对于不清楚的员工，处罚30元/次。若是店长原因，则只处罚店长。

Sheet 5月销售跟踪
A1: 新都区新泰西路店 店销售跟踪报表
A2: 日期 | B2: 天数 | C2: 当天销售情况 | F2: 累积销售情况
C3: 销售目标 | D3: 当天实际销售 | E3: 当天差距金额 | F3: 累积总销售 | G3: 累积日均销售 | H3: 日均差距金额 | I3: 总差距金额
A4: 2013-04-26 | B4: 1 | C4: 1100 | D4: 1068.22 | E4: =D4-C4 -> -31.78 | F4: 1068.22 | G4: 1068.22 | H4: -31.78 | I4: -31.78
A5: 2013-04-27 | B5: =B4+1 -> 2 | C5: 1100 | D5: 725.62 | E5: 374.38 | F5: =F4+D5 -> 1793.84 | G5: 896.92 | H5: -203.08 | I5: -406.16
A6: 2013-04-28 | B6: =B5+1 -> 3 | C6: 1100 | D6: 534.06 | E6: =D6-C6 -> -565.94 | F6: =F5+D6 -> 2327.9 | G6: =F6/3 -> 775.9666667 | H6: =G6-C6 -> -324.0333333 | I6: =H6*3 -> -972.1
A7: 2013-04-29 | B7: 4 | C7: 1100 | D7: 1067.06 | E7: -32.94 | F7: 3394.96 | G7: 848.74 | H7: -251.26 | I7: -1005.04
A8: 2013-04-30 | B8: 5 | C8: 1100 | D8: 567.5 | E8: -532.5 | F8: 3962.46 | G8: 792.492 | H8: -307.508 | I8: -1537.54
A9: 2013-05-01 | B9: 6 | C9: 1100 | D9: 1081.54 | E9: -18.46 | F9: 5044 | G9: 840.6666 | H9: -259.3334 | I9: -1556.0004
A10: 2013-05-02 | B10: 7 | C10: 1100 | D10: 649.88 | E10: =D10-C10 -> -450.12 | F10: =D10+F9 -> 5693.88 | G10: =F10/7 -> 813.4114286 | H10: =G10-C10 -> -286.5885714 | I10: =H10*7 -> -2006.12
A11: 2013-05-03 | B11: 8 | C11: 1100 | D11: 1253.4 | E11: 153.4 | F11: 6947.28 | G11: =F11/8 -> 868.41 | H11: =G11-C11 -> -231.59 | I11: =H11*8 -> -1852.72
A12: 2013-05-04 | B12: 9 | C12: 1100 | D12: 843.96 | E12: -256.04 | F12: 7791.24 | G12: =F12/9 -> 865.6933333 | H12: =G12-C12 -> -234.3066667 | I12: =H12*9 -> -2108.76
A13: 2013-05-05 | B13: 10 | C13: 1100 | D13: 482.68 | E13: -617.32 | F13: 8273.92 | G13: =F13/10 -> 827.392 | H13: =G13-C14 -> -272.608 | I13: =H13*10 -> -2726.08
A14: 2013-05-06 | B14: 11 | C14: 1100 | D14: 890.4 | E14: -209.6 | F14: 9164.32 | G14: =F14/11 -> 833.12 | H14: =G14-C14 -> -266.88 | I14: =H14*11 -> -2935.68
A15: 2013-05-07 | B15: 12 | C15: 1100 | D15: 1122.17 | E15: 22.17 | F15: 10286.49 | G15: =F15/12 -> 857.2075 | H15: =G15-C15 -> -242.7925 | I15: =H15*12 -> -2913.51
A16: 2013-05-08 | B16: 13 | C16: 1100 | D16: 1141.62 | E16: 41.62 | F16: 11428.11 | G16: 879.0853 | H16: -220.9147 | I16: -2871.8911
A17: 2013-05-09 | B17: 14 | C17: 1100 | D17: 1491.9 | E17: 391.9 | F17: 12920.01 | G17: 922.85785 | H17: -177.142 | I17: -2479.99
A18: 2013-05-10 | B18: 15 | C18: 1100 | D18: 1775.7 | E18: 675.7 | F18: =F17+D18 -> 14695.71 | G18: =F18/15 -> 979.714 | H18: =G18-C18 -> -120.286 | I18: =H18*15 -> -1804.29
A19: 2013-05-11 | B19: 16 | C19: 1100 | D19: 1520.9 | E19: 420.9 | F19: 16216.61 | G19: 1013.538 | H19: -86.462 | I19: -1383.392
A20: 2013-05-12 | B20: 17 | C20: 1100 | D20: 883.17 | E20: -216.83 | F20: 17099.78 | G20: 1005.869411 | H20: -94.13058 | I20: -1600.22
A21: 2013-05-13 | B21: 18 | C21: 1100 | D21: 2417.2 | E21: 1317.2 | F21: =D21+F20 -> 19516.98 | G21: =F21/18 -> 1084.276667 | H21: =G21-C21 -> -15.72333333 | I21: =H21*18 -> -283.02
A22: 2013-05-14 | B22: 19 | C22: 1100 | D22: 1145.3 | E22: 45.3 | F22: =F21+D22 -> 20662.28 | G22: =F22/19 -> 1087.488421 | H22: =G22-C22 -> -12.51157895 | I22: =H22*19 -> -237.72
A23: 2013-05-15 | B23: 20 | C23: 1100 | D23: 578.12 | E23: =D23-C23 -> -521.88 | F23: 21240.4 | G23: 1062.02 | H23: -37.98 | I23: -759.6
A24: 2013-05-16 | B24: 21 | C24: 1100 | D24: 586.04 | E24: -513.96 | F24: 21826.44 | G24: 1039.354 | H24: -60.646 | I24: -1273.566
A25: 2013-05-17 | B25: 22 | C25: 1100 | D25: 529.12 | E25: -570.88 | F25: =D25+F24 -> 22355.56 | G25: =F25/22 -> 1016.161818 | H25: =G25-C25 -> -83.83818182 | I25: =H25*22 -> -1844.44
A26: 2013-05-18 | B26: 23 | C26: 1100 | D26: 963.43 | E26: -136.57 | F26: 23318.99 | G26: 1013.8691 | H26: -86.13086 | I26: -1981.01
A27: 2013-05-19 | B27: 24 | C27: 1100 | D27: 934.68 | E27: -165.32 | F27: 24253.67 | G27: 1010.56958 | H27: -89.43042 | I27: -2146.33008
A28: 2013-05-20 | B28: 25 | C28: 1100 | D28: 1464.95 | E28: 364.95 | F28: 25718.62 | G28: 1028.7448 | H28: -74.2552 | I28: -1781.38
A29: 2013-05-21 | B29: 26 | C29: 1100 | D29: 950.91 | E29: -149.09 | F29: 26671.93 | G29: 1025.843 | H29: -74.1565 | I29: -1928.07
A30: 2013-05-22 | B30: 27 | C30: 1100 | D30: 853.02 | E30: -246.98 | F30: =D30+F29 -> 27524.95 | G30: =F30/27 -> 1019.442593 | H30: =G30-C30 -> -80.55740741 | I30: =H30*27 -> -2175.05
A31: 2013-05-23 | B31: 28 | C31: 1100 | D31: 981.75 | E31: -118.25 | F31: =D31+F30 -> 28506.7 | G31: =F31/28 -> 1018.096429 | H31: =G31-C31 -> -81.90357143 | I31: =H31*B31 -> -2293.3
A32: 2013-05-24 | B32: 29 | C32: 1100 | D32: 2326.6 | E32: 1226.6 | F32: =F31+D32 -> 30833.3 | G32: =F32/29 -> 1063.217241 | H32: =G32-C32 -> -36.78275862 | I32: =H32*29 -> -1066.7
A33: 2013-05-25 | B33: 30 | C33: 1100 | D33: 679.47 | E33: =D33-C33 -> -420.53 | F33: 31512.77 | G33: 1050.426 | H33: -49.574 | I33: -1487.22
A34: 2013-05-26 | B34: 31 | C34: 1100
A36: 汇总 | C36: / | D36: / | E36: /
A38: 当天差距金额 | C38: ＝当天实际销售-当天销售目标
A39: 累积总销售 | C39: ＝1月14日至当天的总销售
A40: 累积日均销售 | C40: ＝累积总销售/天数
A41: 日均差距金额 | C41: ＝累积日均销售-当天销售目标
A42: 总差距金额 | C42: ＝日均差距金额*天数
A45: 1、每天晚上下班后安排人员填写门店日销及员工日销报表
A46: 2、每天在早会时向每一个员工通报前天的门店及员工销售日报，并传达当天每个员工的销售任务。下午接班的班组在上岗前开会小会学习后再上岗。
A47: 3、两个报表需每天上午9：00以前报片区，片区于9：30以前报营业部。周末因要做广场活动可不报
A48: 4、两个报表需挂在员工休息区或是办公室等能让员工都看到的地方，但注意不要挂在顾客轻易能看到的地方。
A49: 5、每一个员工必须清楚了解自已当班的销售任务及自已当天与累积的差距金额，营业部每天均会安排人员进行电话抽查，对于不清楚的员工，处罚30元/次。若是店长原因，则只处罚店长。

Sheet 4月销售跟踪
A1: 新都区新泰西路店 店销售跟踪报表
A2: 日期 | B2: 天数 | C2: 当天销售情况 | F2: 累积销售情况
C3: 销售目标 | D3: 当天实际销售 | E3: 当天差距金额 | F3: 累积总销售 | G3: 累积日均销售 | H3: 日均差距金额 | I3: 总差距金额
A4: 2013-03-26 | B4: 1 | C4: 1100 | D4: 857.6 | E4: =D4-C4 -> -242.4 | F4: 857.6 | G4: 857.6 | H4: =D4-C4 -> -242.4 | I4: -242.4
A5: 2013-03-27 | B5: =B4+1 -> 2 | C5: 1100 | D5: 487.56 | E5: -612.44 | F5: =D5+D4 -> 1345.16 | G5: =F5/2 -> 672.58 | H5: =G5-C5 -> -427.42 | I5: =H5*2 -> -854.84
A6: 2013-03-28 | B6: =B5+1 -> 3 | C6: 1100 | D6: 501.7 | E6: -598.3 | F6: =F5+D6 -> 1846.86 | G6: =F6/3 -> 615.62 | H6: =G6-C6 -> -484.38 | I6: =H6*3 -> -1453.14
A7: 2013-03-29 | B7: 4 | C7: 1100 | D7: 1551.34 | E7: 451.34 | F7: =F6+D7 -> 3398.2 | G7: =F7/4 -> 849.55 | H7: =G7-C7 -> -250.45 | I7: =H7*4 -> -1001.8
A8: 2013-03-30 | B8: 5 | C8: 1100 | D8: 992.12 | E8: -107.88 | F8: 4390.32 | G8: 878.064 | H8: -221.936 | I8: -1109.68
A9: 2013-03-31 | B9: 6 | C9: 1100 | D9: 1599.41 | E9: 499.41 | F9: =D9+F8 -> 5989.73 | G9: =F9/6 -> 998.2883333 | H9: =G9-C9 -> -101.7116667 | I9: =H9*6 -> -610.27
A10: 2013-04-01 | B10: 7 | C10: 1100 | D10: 752 | E10: -348 | F10: =F9+D10 -> 6741.73 | G10: =F10/7 -> 963.1042857 | H10: =G10-C10 -> -136.8957143 | I10: =H10*7 -> -958.27
A11: 2013-04-02 | B11: 8 | C11: 1100 | D11: 1005.21 | E11: =D11-C11 -> -94.79 | F11: =F10+D11 -> 7746.94 | G11: =F11/8 -> 968.3675 | H11: =G11-C11 -> -131.6325 | I11: =H11*8 -> -1053.06
A12: 2013-04-03 | B12: 9 | C12: 1100 | D12: 937.63 | E12: -162.37 | F12: 8684.57 | G12: 964.95222 | H12: -135.0477 | I12: -1215.43
A13: 2013-04-04 | B13: 10 | C13: 1100 | D13: 772.85 | E13: -327.15 | F13: 9457.42 | G13: 945.742 | H13: -154.258 | I13: -1542.58
A14: 2013-04-05 | B14: 11 | C14: 1100 | D14: 1020.81 | E14: -79.19 | F14: 10478.23 | G14: 952.56636 | H14: -147.4336 | I14: -1621.77
A15: 2013-04-06 | B15: 12 | C15: 1100 | D15: 972.58 | E15: -127.42 | F15: 11450.81 | G15: 954.234166 | H15: -145.7658 | I15: -1749.19
A16: 2013-04-07 | B16: 13 | C16: 1100 | D16: 749.1 | E16: -350.9 | F16: 12199.91 | G16: 938.45461 | H16: -161.54539 | I16: -2100.09007
A17: 2013-04-08 | B17: 14 | C17: 1100 | D17: 607.1 | E17: -492.9 | F17: 12807.01 | G17: 914.78642 | H17: -185.21 | I17: -2592.99
A18: 2013-04-09 | B18: 15 | C18: 1100 | D18: 847.9 | E18: =D18-C18 -> -252.1 | F18: =D18+F17 -> 13654.91 | G18: =F18/15 -> 910.3273333 | H18: =G18-C18 -> -189.6726667 | I18: =H18*15 -> -2845.09
A19: 2013-04-10 | B19: 16 | C19: 1100 | D19: 1071.56 | E19: -28.44 | F19: =F18+D19 -> 14726.47 | G19: =F19/16 -> 920.404375 | H19: =G19-C19 -> -179.595625 | I19: =H19*16 -> -2873.53
A20: 2013-04-11 | B20: 17 | C20: 1100 | D20: 962.02 | E20: -137.98 | F20: 15688.49 | G20: 922.8523 | H20: -177.1476 | I20: -3011.51
A21: 2013-04-12 | B21: 18 | C21: 1100 | D21: 957.82 | E21: -142.18 | F21: =D21+F20 -> 16646.31 | G21: =F21/18 -> 924.795 | H21: =G21-C21 -> -175.205 | I21: =H21*18 -> -3153.69
A22: 2013-04-13 | B22: 19 | C22: 1100 | D22: 443.3 | E22: -656.7 | F22: =D22+F21 -> 17089.61 | G22: =F22/19 -> 899.4531579 | H22: =G22-C22 -> -200.5468421 | I22: =H22*19 -> -3810.39
A23: 2013-04-14 | B23: 20 | C23: 1100 | D23: 569.29 | E23: -530.71 | F23: =F22+D23 -> 17658.9 | G23: =F23/20 -> 882.945 | H23: =G23-C23 -> -217.055 | I23: =H23*20 -> -4341.1
A24: 2013-04-15 | B24: 21 | C24: 1100 | D24: 722.9 | E24: -377.1 | F24: 18381.8 | G24: 875.3238 | H24: -224.67619 | I24: -4718.2
A25: 2013-04-16 | B25: 22 | C25: 1100 | D25: 623 | E25: =D25-C25 -> -477 | F25: 19004.8 | G25: 863.8545 | H25: `-236.1455 | I25: -5195.201
A26: 2013-04-17 | B26: 23 | C26: 1100 | D26: 728.31 | E26: -371.69 | F26: =F25+D26 -> 19733.11 | G26: =F26/23 -> 857.9613043 | H26: =G26-C26 -> -242.0386957 | I26: =H26*23 -> -5566.89
A27: 2013-04-18 | B27: 24 | C27: 1100 | D27: 1000.94 | E27: -99.06 | F27: =F26+D27 -> 20734.05 | G27: =F27/24 -> 863.91875 | H27: =G27-C27 -> -236.08125 | I27: =H27*24 -> -5665.95
A28: 2013-04-19 | B28: 25 | C28: 1100 | D28: 452.92 | E28: -647.08 | F28: 21186.97 | G28: 847.4788 | H28: -252.5212 | I28: -6313.03
A29: 2013-04-20 | B29: 26 | C29: 1100 | D29: 607 | E29: -493 | F29: 21793.97 | G29: 838.2296 | H29: -261.7704 | I29: -6806.0304
A30: 2013-04-21 | B30: 27 | C30: 1100 | D30: 1318.79 | E30: 218.79 | F30: 23112.76 | G30: 856.0281 | H30: -243.9719 | I30: -6587.2413
A31: 2013-04-22 | B31: 28 | C31: 1100 | D31: 1221.46 | E31: 121.46 | F31: =D31+F30 -> 24334.22 | G31: =F31/28 -> 869.0792857 | H31: =G31-C31 -> -230.9207143 | I31: =H31*22 -> -5080.255714
A32: 2013-04-23 | B32: 29 | C32: 1100 | D32: 646.71 | E32: -453.29 | F32: =D32+F31 -> 24980.93 | G32: =F32/29 -> 861.4113793 | H32: =G32-C32 -> -238.5886207 | I32: =H32*29 -> -6919.07
A33: 2013-04-24 | B33: 30 | C33: 1100 | D33: 526.4 | E33: -573.6 | F33: =D33+F32 -> 25507.33 | G33: =F33/30 -> 850.2443333 | H33: =G33-C33 -> -249.7556667 | I33: =H33*30 -> -7492.67
A34: 2013-04-25 | B34: 31 | C34: 1100 | D34: 1640.74 | E34: =D34-C34 -> 540.74 | F34: 27148.07 | G34: 875.74419 | H34: -224.25581 | I34: -6951.93011
A36: 汇总 | C36: / | D36: / | E36: /
A38: 当天差距金额 | C38: ＝当天实际销售-当天销售目标
A39: 累积总销售 | C39: ＝1月14日至当天的总销售
A40: 累积日均销售 | C40: ＝累积总销售/天数
A41: 日均差距金额 | C41: ＝累积日均销售-当天销售目标
A42: 总差距金额 | C42: ＝日均差距金额*天数
A45: 1、每天晚上下班后安排人员填写门店日销及员工日销报表
A46: 2、每天在早会时向每一个员工通报前天的门店及员工销售日报，并传达当天每个员工的销售任务。下午接班的班组在上岗前开会小会学习后再上岗。
A47: 3、两个报表需每天上午9：00以前报片区，片区于9：30以前报营业部。周末因要做广场活动可不报
A48: 4、两个报表需挂在员工休息区或是办公室等能让员工都看到的地方，但注意不要挂在顾客轻易能看到的地方。
A49: 5、每一个员工必须清楚了解自已当班的销售任务及自已当天与累积的差距金额，营业部每天均会安排人员进行电话抽查，对于不清楚的员工，处罚30元/次。若是店长原因，则只处罚店长。

Sheet Sheet2
A1: 新泰西路 店员工日销跟踪报表
A2: 日期 | B2: 销售人员朱朝霞 | F2: 销售人员胡燕明 | J2: 销售人员李江 | N2: 销售人员4 | R2: 。。。。。。
B3: 个人当天任务 | C3: 个人当天实际销售 | D3: 当天差距 | E3: 累积差距 | F3: 个人当天任务 | G3: 个人当天实际销售 | H3: 当天差距 | I3: 累积差距 | J3: 个人当天任务 | K3: 个人当天实际销售 | L3: 当天差距 | M3: 累积差距 | N3: 个人当天任务 | O3: 个人当天实际销售 | P3: 当天差距 | Q3: 累积差距
A4: 2013-01-14 | B4: 534.25 | C4: 470.025 | D4: =C4-B4 -> -64.225 | E4: -64.225 | F4: 534.25 | G4: 470.025 | H4: -64.225 | I4: -64.225 | J4: 0 | K4: 0 | L4: 0 | M4: 0
A5: 2013-01-15 | B5: 534.25 | C5: 491.75 | D5: =C5-B5 -> -42.5 | E5: -106.725 | F5: 0 | G5: 0 | H5: 0 | I5: -64.23 | J5: 534.25 | K5: 491.75 | L5: -42.5 | M5: -42.5
A6: 2013-01-16 | B6: 0 | C6: 0 | D6: 0 | E6: -106.725 | F6: 534.25 | G6: 480.84 | H6: -53.41 | I6: -117.64 | J6: 534.25 | K6: 480.84 | L6: -53.41 | M6: -95.91
A7: 2013-01-17 | B7: 534.25 | C7: 255.6 | D7: -278.65 | E7: -385.375 | F7: 534.25 | G7: 255.6 | H7: -278.65 | I7: -396.29 | J7: 0 | K7: 0 | L7: 0 | M7: -95.91
A8: 2013-01-18 | B8: 534.25 | C8: 305.5 | D8: -228.75 | E8: -614.125 | F8: 0 | G8: 0 | H8: 0 | I8: -396.29 | J8: 534.25 | K8: 305.5 | L8: -228.75 | M8: -324.66
A9: 2013-01-19 | B9: 0 | C9: 0 | D9: 0 | E9: -614.125 | F9: 534.25 | G9: 327.95 | H9: -206.3 | I9: -602.59 | J9: 534.25 | K9: 327.95 | L9: -206.3 | M9: -530.96
A10: 2013-01-20 | B10: 534.25 | C10: 541.685 | D10: 7.435 | E10: -606.69 | F10: 534.25 | G10: 541.685 | H10: 7.435 | I10: -595.155 | J10: 0 | K10: 0 | L10: 0 | M10: -530.96
A11: 2013-01-21 | B11: 534.25 | C11: 415.535 | D11: =C11-B11 -> -118.715 | E11: -725.405 | F11: 0 | G11: 0 | H11: 0 | I11: -595.155 | J11: 534.25 | K11: 415.535 | L11: =K11-J11 -> -118.715 | M11: -649.675
A12: 2013-01-22 | B12: 0 | C12: 0 | D12: 0 | E12: -725.405 | F12: 534.25 | G12: 483.45 | H12: -50.8 | I12: -645.955 | J12: 534.25 | K12: 483.45 | L12: -50.8 | M12: -700.475
A13: 2013-01-23 | B13: 534.25 | C13: 368.66 | D13: -165.59 | E13: -890.995 | F13: 534.25 | G13: 368.66 | H13: -165.59 | I13: -811.545 | J13: 0 | K13: 0 | L13: 0 | M13: -700.475
A14: 2013-01-24 | B14: 534.25 | C14: 527.75 | D14: =C14-B14 -> -6.5 | E14: -897.495 | F14: 0 | G14: 0 | H14: 0 | I14: -811.545 | J14: 534.25 | K14: 527.75 | L14: -6.5 | M14: -706.957
A15: 2013-01-25 | B15: 0 | C15: 0 | D15: 0 | E15: -897.495 | F15: 534.25 | G15: 402.79 | H15: =G15-F15 -> -131.46 | I15: -943.005 | J15: 534.25 | K15: 402.79 | L15: -131.46 | M15: -838.417
A16: 2013-01-26 | B16: 534.25 | C16: 879.4 | D16: 345.15 | E16: -552.345 | F16: 534.25 | G16: 879.4 | H16: 345.15 | I16: -597.855 | J16: 0 | K16: 0 | L16: 0 | M16: -838.417
A17: 2013-01-27 | B17: 534.25 | C17: 895.385 | D17: 361.135 | E17: -161.21 | F17: 0 | G17: 0 | H17: 0 | I17: -597.855 | J17: 534.25 | K17: 895.385 | L17: 361.135 | M17: -477.282
A18: 2013-01-28 | B18: 0 | C18: 0 | D18: 0 | E18: -161.21 | F18: 534.25 | G18: 594.305 | H18: =G18-F18 -> 60.055 | I18: -537.8 | J18: 534.25 | K18: 594.305 | L18: 60.055 | M18: -417.227
A19: 2013-01-29 | B19: 534.25 | C19: 550.06 | D19: 15.81 | E19: -145.4 | F19: 534.25 | G19: 550.06 | H19: 15.81 | I19: =I18+H19 -> -521.99 | J19: 0 | K19: 0 | L19: 0 | M19: -417.227
A20: 2013-01-30 | B20: 534.25 | C20: 242.785 | D20: -291.465 | E20: -436.865 | F20: 0 | G20: 0 | H20: 0 | I20: =I19+H20 -> -521.99 | J20: 534.25 | K20: 242.785 | L20: -291.465 | M20: -708.692
A21: 2013-01-31 | B21: 0 | C21: 0 | D21: 0 | E21: -436.865 | F21: 534.25 | G21: 172.015 | H21: =G21-F21 -> -362.235 | I21: -884.23 | J21: 534.25 | K21: 172.015 | L21: =K21-J21 -> -362.235 | M21: -1070.927
A22: 2013-02-01 | B22: 534.25 | F22: 534.25 | J22: 0 | K22: 0 | L22: 0 | M22: -1070.927
A23: 2013-02-02
A24: 2013-02-03
A25: 2013-02-04
A26: 2013-02-05
A27: 2013-02-06
A28: 2013-02-07
A29: 2013-02-08
A30: 汇总
A32: 个人当天任务 | C32: 将门店当天销售目标分解到班再分解到人，于当天早上早会以前制定
A33: 当天差距 | C33: ＝个人当天实际销售-个人当天任务
A34: 累积差距 | C34: ＝每天差距的总和

Sheet Sheet4

Sheet Sheet3
